bitfinex/quotes_ETHUSD_20250413
["timestamp","ask_amount","ask_price","bid_price","bid_amount"]
[1744572699107,6.1762,1619.2,1618.8,12.31734]
[1744572699277,8.1630417,1619.3,1618.9,6.17698]
[1744572699484,1.9875117,1619.3,1619.0,6.17634]
[1744572699690,8.1632517,1619.3,1618.9,6.17697]
[1744572699903,6.94544,1619.1,1618.6,12.31814]
[1744572700104,6.17706,1618.9,1618.6,12.31814]
[1744572700280,6.17706,1618.9,1618.6,12.35619]
[1744572700669,6.17762,1618.8,1618.5,6.14]
[1744572700903,6.17857,1618.5,1618.2,6.94058]
[1744572701086,6.17857,1618.5,1618.2,12.3591]
[1744572701389,7.5952,1618.9,1618.6,6.17804]
[1744572701617,0.7762,1619.1,1619.0,6.17665]
[1744572701798,7.63532517,1619.2,1619.0,6.17665]
[1744572702004,13.81121517,1619.2,1618.9,6.17702]
[1744572702224,1.38112152,1619.1,1618.9,6.17682]
[1744572702426,7.63532517,1619.2,1619.0,6.17664]
[1744572702747,7.63532517,1619.2,1619.0,12.35317]
[1744572702923,7.63532517,1619.2,1618.9,6.17688]
[1744572704113,7.63532517,1619.2,1618.9,12.35379]
[1744572704438,6.819,1619.2,1619.1,6.17627]
[1744572704744,13.76964,1619.6,1619.2,6.17576]
[1744572704954,13.76964,1619.6,1619.3,6.1755]
[1744572705251,6.17492,1619.5,1619.2,6.17583]
[1744572705415,8.169376,1619.5,1619.2,6.17583]
[1744572708069,0.8108,1619.9,1619.3,6.1754]
[1744572708265,6.17556,1619.3,1619.0,6.17661]
[1744572708565,6.17533,1619.4,1619.0,12.35313]
[1744572708738,12.99433,1619.4,1619.1,6.17624]
[1744572708942,14.911244,1619.4,1619.1,6.17624]
[1744572710127,8.735914,1619.4,1619.2,6.17586]
[1744572710543,8.735914,1619.4,1619.1,12.35222]
[1744572710739,9.818,1619.7,1619.2,6.14]
[1744572710967,6.17448,1619.6,1619.2,6.9575]
[1744572711170,6.818,1619.7,1619.2,13.13309]
[1744572711392,6.17568,1619.3,1619.0,0.8175]
[1744572711670,6.98597,1619.4,1619.0,6.17638]
[1744572711875,6.818,1619.3,1619.0,6.17638]
[1744572712172,6.818,1619.3,1619.0,12.35288]
[1744572712334,6.818,1619.3,1619.0,12.35291]
[1744572712535,6.818,1619.3,1619.0,6.17638]
[1744572713163,12.99359,1619.3,1619.0,6.17638]
[1744572713358,12.99359,1619.3,1619.1,6.17623]
[1744572713359,8.9475637,1619.3,1619.1,6.17623]
[1744572713568,6.818,1619.3,1619.1,6.17623]
[1744572713767,6.818,1619.3,1619.1,12.35237]
[1744572714166,6.818,1619.3,1619.1,6.17614]
[1744572714383,6.818,1619.3,1619.0,6.17656]
[1744572714531,8.3300067,1619.3,1619.0,6.17656]
[1744572714726,8.3300067,1619.3,1618.9,6.14]
[1744572714927,6.17723,1618.9,1618.6,6.14]
[1744572715254,6.17628,1619.1,1618.8,6.17729]
[1744572715459,6.794398,1619.0,1618.7,6.17779]
[1744572715774,0.8119,1619.5,1619.0,6.17665]
[1744572715941,6.1744,1619.6,1619.3,12.35069]
[1744572716142,6.818,1619.7,1619.3,0.8163]
[1744572716345,12.99228,1619.7,1619.3,6.99174]
[1744572716869,6.17448,1619.6,1619.3,6.17544]
[1744572717069,7.473708,1619.6,1619.3,6.17544]
[1744572717269,0.8119,1619.5,1619.1,0.8163]
[1744572717473,6.17553,1619.3,1618.9,13.133]
[1744572717768,16.16183,1619.5,1619.1,6.17605]
[1744572718068,7.791353,1619.4,1619.0,12.35322]
[1744572718774,7.791353,1619.4,1619.1,0.19296894]
[1744572718979,7.791353,1619.4,1619.0,12.35322]
[1744572719781,7.791353,1619.4,1619.1,0.19296547]
[1744572720365,7.791353,1619.4,1619.0,12.35322]
[1744572720679,7.791353,1619.4,1619.1,6.1761]
[1744572721589,1.616183,1619.4,1618.9,13.13332]
[1744572721749,12.35154,1619.3,1619.0,0.19297531]
[1744572722144,12.35154,1619.3,1618.9,19.31008]
[1744572722346,6.17576,1619.3,1618.9,19.31008]
[1744572722946,6.17576,1619.3,1619.0,0.19297891]
[1744572723148,6.17627,1619.1,1619.0,0.19297891]
[1744572723348,7.492694,1619.1,1619.0,0.19297891]
[1744572723577,13.669164,1619.1,1618.7,19.31159]
[1744572723891,6.818,1619.3,1618.8,0.19299643]
[1744572724184,12.99352,1619.3,1619.0,6.17662]
[1744572724383,6.818,1619.3,1618.9,6.33299643]
[1744572724552,6.818,1619.3,1619.1,6.17602]
[1744572724753,6.818,1619.3,1619.1,12.35215]
[1744572724983,6.818,1619.3,1619.1,6.17602]
[1744572725286,6.818,1619.3,1619.1,12.35213]
[1744572725961,6.818,1619.3,1619.1,6.17602]
[1744572727383,6.818,1619.3,1619.2,6.17588]
[1744572729986,12.35231,1619.2,1618.9,6.14]
[1744572730561,6.818,1619.3,1619.1,6.17604]
[1744572730761,0.7859,1619.5,1619.2,6.17588]
[1744572730966,6.815,1619.7,1619.5,6.17459]
[1744572731168,0.7937,1620.0,1619.7,6.17398]
[1744572731398,0.7937,1620.0,1619.7,12.34796]
[1744572731610,0.7937,1620.0,1619.8,6.17335]
[1744572731900,59.8,1620.1,1619.8,6.17335]
[1744572732199,6.815,1620.1,1619.9,6.98694]
[1744572732408,7.6287,1620.4,1620.1,6.1724]
[1744572732578,13.8002,1620.4,1620.0,6.1727]
[1744572732772,7.6287,1620.4,1620.1,6.17239]
[1744572733177,9.008689,1620.4,1620.1,6.17239]
[1744572733368,6.17226,1620.2,1619.8,6.17358]
[1744572733565,9.008689,1620.4,1619.6,1.26658779]
[1744572733566,0.7937,1620.1,1619.6,0.814]
[1744572733770,6.17283,1620.0,1619.6,6.98804]
[1744572734006,3.0,1620.0,1619.7,12.34778]
[1744572734206,3.0,1620.0,1619.7,12.4095134]
[1744572734715,14.386379,1620.4,1619.9,12.34623]
[1744572734716,6.17182,1620.3,1619.9,12.34623]
[1744572734872,3.0,1620.3,1619.8,6.17354]
[1744572735072,12.34535,1620.1,1619.6,6.98833]
[1744572735275,6.17329,1619.9,1619.4,6.17502]
[1744572735612,6.17374,1619.8,1619.4,6.23676471]
[1744572735814,6.17329,1619.9,1619.5,6.17472]
[1744572735976,6.814,1620.0,1619.7,6.17382]
[1744572736176,9.92842,1620.2,1619.8,6.17339]
[1744572736373,16.10071,1620.2,1619.8,6.17339]
[1744572736574,6.17246,1620.1,1619.7,18.48788]
[1744572736907,6.92842,1620.2,1619.8,6.17341]
[1744572737100,6.92842,1620.2,1619.9,6.17304]
[1744572737289,6.92842,1620.2,1619.8,6.17341]
[1744572737290,13.10075,1620.2,1619.8,6.17341]
[1744572737785,6.17247,1620.1,1619.8,6.17341]
[1744572739394,6.17247,1620.1,1619.7,14.69199907]
[1744572739395,0.7563,1620.2,1619.7,6.14]
[1744572739586,6.9879,1619.8,1619.7,6.14]
[1744572739787,6.17512,1619.4,1619.3,6.14]
[1744572739988,6.17425,1619.7,1619.3,6.17537]
[1744572740202,13.80097,1619.8,1619.4,12.34992]
[1744572740406,13.80097,1619.8,1619.4,12.31494]
[1744572740676,13.80097,1619.8,1619.4,14.163982]
[1744572740888,13.80097,1619.8,1619.4,20.338912]
[1744572741421,19.9748,1619.8,1619.4,20.338912]
[1744572742407,13.80097,1619.8,1619.4,20.338912]
[1744572742803,6.813,1619.8,1619.5,6.97314]
[1744572743012,6.813,1619.8,1619.5,8.57799732]
[1744572743518,6.813,1619.8,1619.5,14.75260732]
[1744572743717,6.1746,1619.6,1619.4,6.14]
[1744572743881,6.17474,1619.5,1619.4,6.14]
[1744572744516,9.17474,1619.5,1619.4,6.14]
[1744572744710,9.17474,1619.5,1619.2,6.17585]
[1744572744899,6.17528,1619.4,1619.0,12.31659]
[1744572745103,12.35074,1619.4,1619.0,14.245816]
[1744572745303,12.35074,1619.4,1619.0,20.422286]
[1744572745507,6.17528,1619.4,1619.1,6.17623]
[1744572746717,3.0,1619.5,1619.2,6.17579]
[1744572746903,6.17439,1619.6,1619.3,6.17545]
[1744572747404,4.612445,1619.6,1619.0,14.245856]
[1744572747620,6.17665,1619.0,1618.9,6.14]
[1744572747830,6.17706,1618.9,1618.7,6.14]
[1744572748196,12.35434,1618.9,1618.6,6.14]
[1744572748535,6.17545,1619.4,1619.0,6.17662]
[1744572748536,6.17542,1619.4,1619.0,6.17662]
[1744572748687,6.1759,1619.2,1618.8,12.31705]
[1744572748886,6.17518,1619.4,1619.0,6.17663]
[1744572749148,16.80427,1619.5,1619.1,12.35236]
[1744572749336,13.80427,1619.5,1619.1,12.35224]
[1744572749625,13.80429,1619.5,1619.1,14.283864]
[1744572749928,13.80429,1619.5,1619.2,6.17587]
[1744572750330,13.80429,1619.5,1619.1,8.107674]
[1744572750828,13.80429,1619.5,1619.1,14.283764]
[1744572751030,7.6295,1619.5,1619.2,6.17565]
[1744572751188,6.814,1619.5,1619.2,12.35142]
[1744572751388,6.814,1619.5,1619.2,13.7797104]
[1744572751583,12.98876,1619.5,1619.2,7.6039404]
[1744572752037,12.98876,1619.5,1619.2,13.84144249]
[1744572752230,12.98876,1619.5,1619.2,7.6039404]
[1744572752427,12.98876,1619.5,1619.0,6.14]
[1744572752428,6.17591,1619.2,1619.0,6.14]
[1744572752790,6.99087,1619.4,1619.0,12.3166]
[1744572752993,6.17537,1619.4,1619.1,6.17605]
[1744572753193,12.35073,1619.4,1619.0,12.31659]
[1744572753502,6.17513,1619.4,1619.0,13.548249]
[1744572753701,6.17513,1619.4,1619.1,6.17604]
[1744572753916,6.17557,1619.3,1619.0,13.548129]
[1744572754152,6.17609,1619.2,1619.0,6.14]
[1744572754431,6.17651,1619.1,1618.7,12.31752]
[1744572754638,6.17594,1619.2,1618.8,6.17716]
[1744572754799,6.17594,1619.2,1618.9,6.17689]
[1744572755333,6.17594,1619.2,1618.8,12.35443]
[1744572755521,6.17662,1619.1,1618.8,0.7914266]
[1744572755707,12.35324,1619.1,1618.8,0.7914266]
[1744572756096,6.17726,1618.9,1618.7,6.14]
[1744572756339,6.17627,1619.1,1618.5,12.31841]
[1744572756340,0.8066,1619.0,1618.5,12.31841]
[1744572756695,6.17758,1618.8,1618.5,12.31841]
[1744572756895,6.17758,1618.8,1618.5,14.246367]
[1744572757242,3.0,1619.0,1618.7,6.17756]
[1744572757403,3.0,1619.0,1618.6,6.17816]
[1744572757611,6.17722,1618.9,1618.6,6.17816]
[1744572758338,12.35446,1618.9,1618.6,6.17816]
[1744572758540,6.17722,1618.9,1618.6,6.17816]
[1744572758743,19.16677,1619.1,1618.7,6.23944605]
[1744572758925,19.16677,1619.1,1618.7,6.17767]
[1744572758926,12.9903,1619.1,1618.7,6.17767]
[1744572759318,6.17679,1619.0,1618.7,12.31767]
[1744572759513,12.3538,1619.0,1618.7,6.14]
[1744572759865,12.99034,1619.1,1618.8,6.1774]
[1744572760561,19.16682,1619.1,1618.7,12.31776]
[1744572760859,19.16695,1619.1,1618.7,20.54921157]
[1744572761067,6.814,1619.1,1618.8,0.7877]
[1744572761370,12.35357,1619.0,1618.8,0.7877]
[1744572761547,12.35357,1619.0,1618.7,6.14]
[1744572761736,12.35361,1619.0,1618.7,6.14]
[1744572763062,12.35361,1619.0,1618.7,18.49556]
[1744572763063,6.17673,1619.0,1618.7,18.49556]
[1744572763218,6.17673,1619.0,1618.7,20.423886]
[1744572763431,19.16679,1619.1,1618.7,20.423886]
[1744572763965,6.17673,1619.0,1618.7,14.246106]
[1744572764726,12.35358,1619.0,1618.7,14.246106]
[1744572765172,6.17717,1618.9,1618.6,0.7877]
[1744572765324,6.99975,1618.8,1618.5,6.17838]
[1744572765660,13.17738,1618.8,1618.5,6.17838]
[1744572765828,6.99975,1618.8,1618.5,6.17838]
[1744572766257,6.1784,1618.6,1618.3,13.12164]
[1744572766458,6.1784,1618.6,1618.3,0.8025]
[1744572766966,6.1784,1618.6,1618.2,6.6539673]
[1744572767170,6.1784,1618.6,1618.2,8.49360982]
[1744572767554,19.16985,1618.7,1618.3,12.35814]
[1744572768020,6.17858,1618.5,1618.2,8.49367982]
[1744572769295,7.5856,1619.0,1618.5,6.17856]
[1744572769501,7.5856,1619.0,1618.8,6.17715]
[1744572769699,6.814,1619.0,1618.8,6.17715]
[1744572770493,12.9907,1619.0,1618.7,6.93534]
[1744572770795,6.814,1619.0,1618.8,6.17718]
[1744572772092,6.814,1619.0,1618.8,12.35442]
[1744572772291,6.814,1619.0,1618.9,6.17703]
[1744572773696,0.7716,1619.2,1618.9,6.17703]
[1744572773855,13.16771,1619.4,1619.0,12.35274]
[1744572774061,13.16778,1619.4,1619.0,13.551714]
[1744572774366,6.9924,1619.4,1619.0,19.728244]
[1744572774899,6.9924,1619.4,1619.1,6.17611]
[1744572775902,6.17615,1619.2,1619.0,6.14]
[1744572776072,12.35236,1619.2,1619.0,6.14]
[1744572776406,6.17615,1619.2,1619.0,6.14]
[1744572776922,6.17559,1619.3,1619.0,6.14]
[1744572777090,6.99236,1619.4,1619.0,12.31652]
[1744572777296,6.17564,1619.3,1619.0,12.31652]
[1744572777604,13.16768,1619.4,1619.1,6.17614]
[1744572777795,13.1677,1619.4,1619.1,6.17614]
[1744572778118,12.35133,1619.3,1619.0,7.989346]
[1744572779682,6.17596,1619.2,1619.0,6.14]
[1744572779883,6.17648,1619.1,1618.8,12.31733]
[1744572780326,13.14136,1619.1,1618.9,0.19297915]
[1744572780482,6.96488,1619.1,1618.9,0.19297915]
[1744572780906,6.96488,1619.1,1618.8,6.14]
[1744572780907,0.7884,1619.1,1618.8,6.14]
[1744572781229,0.7884,1619.3,1619.0,6.17653]
[1744572781395,6.96421,1619.3,1618.9,6.17694]
[1744572781585,6.96421,1619.3,1618.9,12.35384]
[1744572782026,6.96421,1619.3,1619.0,6.17647]
[1744572782328,6.1752,1619.4,1619.0,0.8159]
[1744572782500,12.35051,1619.4,1619.0,6.99237]
[1744572782701,6.17554,1619.3,1619.0,7.691607]
[1744572783194,6.17512,1619.4,1618.8,13.13322]
[1744572783395,6.17512,1619.4,1618.1,6.1799]
[1744572783396,6.17665,1619.0,1618.9,0.19297964]
[1744572783603,16.77905,1619.0,1618.9,0.19297964]
[1744572783985,6.96693,1618.6,1618.4,6.14]
[1744572784203,13.78093,1618.6,1618.3,6.14]
[1744572784416,13.78087,1618.6,1618.3,8.071499]
[1744572784616,6.17871,1618.5,1618.3,1.931499]
[1744572784814,6.17871,1618.5,1618.1,6.18004]
[1744572785026,12.35908,1618.3,1618.0,12.27060192]
[1744572785229,6.17953,1618.3,1618.0,12.27060192]
[1744572785625,12.35905,1618.3,1618.0,12.27060192]
[1744572785833,6.17981,1618.2,1618.0,5.31470192]
[1744572786028,13.14733,1618.3,1618.0,5.31470192]
[1744572786237,6.96778,1618.3,1618.0,5.31470192]
[1744572786542,0.7884,1618.5,1618.2,6.17952]
[1744572786925,6.96696,1618.5,1618.2,6.17952]
[1744572787103,6.96696,1618.5,1618.1,6.17988]
[1744572787104,0.7884,1618.5,1618.0,13.26271911]
[1744572787301,6.17909,1618.4,1618.0,5.31470192]
[1744572787549,6.17909,1618.4,1618.1,6.18005]
[1744572787747,6.17909,1618.4,1618.0,11.49499192]
[1744572787933,12.35837,1618.4,1618.0,6.18029]
[1744572788250,0.7884,1618.5,1618.2,6.17955]
[1744572788435,0.7884,1618.5,1618.2,12.35912]
[1744572788610,0.7884,1618.5,1618.2,6.17955]
[1744572789252,7.37909,1618.4,1618.0,13.6030786]
[1744572789411,1.2,1618.4,1618.1,6.17991]
[1744572789605,7.37895,1618.4,1618.1,6.17991]
[1744572789811,6.1795,1618.3,1618.0,1.2422886]
[1744572790027,6.17975,1618.2,1617.9,6.18067]
[1744572790408,12.35967,1618.2,1617.8,19.31816]
[1744572790610,6.17975,1618.2,1617.8,19.31816]
[1744572790853,6.17938,1618.3,1617.9,6.24241423]
[1744572791148,12.35895,1618.3,1617.9,6.18061]
[1744572791651,12.35895,1618.3,1617.9,12.36132]
[1744572792764,1.2,1618.4,1617.9,8.112522]
[1744572792970,6.17968,1618.3,1617.9,14.35500244]
[1744572793121,6.17968,1618.3,1617.9,14.293202]
[1744572793625,6.1795,1618.3,1617.9,14.293202]
[1744572794796,12.35901,1618.3,1617.9,14.293202]
[1744572797179,6.17984,1618.2,1617.9,6.18068]
[1744572797353,6.17937,1618.3,1617.9,6.18068]
[1744572797537,6.17937,1618.3,1618.0,6.1803]
[1744572798076,12.35887,1618.3,1618.0,6.1803]
[1744572798750,1.2,1618.4,1618.1,6.18007]
[1744572798951,1.2,1618.4,1618.1,12.36003]
[1744572799181,16.146,1618.5,1618.3,6.17898]
[1744572799182,0.7884,1618.5,1618.3,6.17898]
[1744572799659,6.814,1618.6,1618.4,6.17866]
[1744572799860,6.814,1618.6,1618.5,6.17856]
[1744572800180,19.95165,1618.9,1618.5,6.17838]
[1744572800379,6.17677,1619.0,1618.7,6.17772]
[1744572800563,6.17719,1618.9,1618.6,6.17817]
[1744572803383,6.17665,1619.0,1618.5,6.14]
[1744572803544,6.17796,1618.7,1618.5,6.14]
[1744572803744,6.93886,1618.8,1618.5,12.31841]
[1744572803943,0.7612,1618.8,1618.5,12.31841]
[1744572804282,0.7612,1618.8,1618.5,18.49682]
[1744572804479,0.7612,1618.8,1618.5,12.31841]
[1744572804690,6.93864,1618.8,1618.5,12.31841]
[1744572804986,6.17672,1619.0,1618.6,6.17797]
[1744572805183,59.94254,1619.1,1618.5,8.068018]
[1744572805184,59.94254,1619.1,1618.7,6.17752]
[1744572805482,59.94254,1619.1,1618.8,6.17735]
[1744572805689,12.98991,1619.2,1618.7,6.95334]
[1744572805690,6.814,1619.2,1618.9,12.3539]
[1744572805896,6.814,1619.2,1618.9,6.17691]
[1744572806058,19.16604,1619.2,1618.9,6.17691]
[1744572806257,19.166,1619.2,1618.9,6.17691]
[1744572806495,12.98993,1619.2,1618.9,12.35382]
[1744572806694,6.814,1619.2,1619.0,6.17638]
[1744572806858,6.814,1619.2,1618.9,8.026332]
[1744572807059,6.814,1619.2,1618.9,14.203202]
[1744572808155,6.814,1619.2,1619.0,6.1766]
[1744572808593,6.814,1619.2,1619.0,12.35313]
[1744572808797,0.8242,1619.7,1619.4,6.17495]
[1744572808957,59.81,1619.8,1619.5,6.17464]
[1744572809157,59.81,1619.8,1619.4,7.03494253]
[1744572809496,13.8087,1620.1,1619.6,12.34858]
[1744572809700,15.18958,1620.1,1619.6,12.37595283]
[1744572809867,9.01707,1620.1,1619.8,6.17331]
[1744572810458,15.18969,1620.1,1619.7,7.00715]
[1744572810660,21.36237,1620.1,1619.7,7.06888243]
[1744572811597,6.17284,1620.0,1619.7,7.06888243]
[1744572811760,6.17284,1620.0,1619.6,12.31431]
[1744572811761,6.17347,1619.9,1619.6,6.14]
[1744572811966,8.309107,1620.0,1619.6,6.14]
[1744572812265,8.309107,1620.0,1619.6,18.48845]
[1744572812471,6.17287,1620.0,1619.7,6.23570584]
[1744572812772,6.17287,1620.0,1619.6,12.31421]
[1744572813070,6.17287,1620.0,1619.6,18.48836]
[1744572813502,6.17287,1620.0,1619.7,0.06173241]
[1744572814504,6.17287,1620.0,1619.6,18.48836]
[1744572814800,6.17287,1620.0,1619.7,0.06173242]
[1744572814998,6.17326,1619.9,1619.7,0.06173242]
[1744572815204,6.17381,1619.8,1619.6,6.14]
[1744572815506,6.99598,1619.7,1619.6,6.14]
[1744572815702,6.17469,1619.6,1619.2,13.08217]
[1744572815910,6.17469,1619.6,1619.2,21.3072903]
[1744572816094,6.17469,1619.6,1619.2,15.1314203]
[1744572817104,6.17469,1619.6,1619.3,6.1755]
[1744572818002,12.34926,1619.6,1619.2,13.08205]
[1744572818407,6.17488,1619.5,1619.2,6.9063]
[1744572818570,6.17488,1619.5,1619.1,6.14]
[1744572818571,6.17551,1619.3,1619.1,6.14]
[1744572818775,6.17588,1619.2,1619.1,6.14]
[1744572818974,6.17566,1619.3,1618.9,12.31686]
[1744572819184,6.17566,1619.3,1618.9,13.627756]
[1744572819508,0.7779,1619.4,1618.9,7.450896]
[1744572819692,9.17488,1619.5,1619.2,6.17587]
[1744572820271,6.17525,1619.4,1619.0,6.17658]
[1744572820785,7.37525,1619.4,1619.0,6.17658]
[1744572821181,1.2,1619.4,1619.1,6.176]
[1744572821382,1.2,1619.4,1619.1,12.41382371]
[1744572821616,6.17386,1619.8,1619.1,12.41382371]
[1744572821617,0.7779,1619.9,1619.3,6.9676]
[1744572821790,6.805,1620.0,1619.7,6.17369]
[1744572821981,6.94966,1620.3,1619.9,6.17322]
[1744572822182,6.1721,1620.2,1619.9,6.17322]
[1744572822383,6.94989,1620.3,1619.9,13.13838]
[1744572822701,6.94989,1620.3,1619.9,6.96516]
[1744572822902,13.12185,1620.3,1619.9,6.96515]
[1744572823114,6.17262,1620.1,1619.8,6.14]
[1744572823314,8.263865,1620.3,1619.8,6.14]
[1744572823516,6.17322,1619.9,1619.8,6.14]
[1744572823826,6.173,1620.0,1619.6,6.14]
[1744572823827,6.17362,1619.8,1619.6,6.14]
[1744572824182,6.95079,1620.0,1619.6,12.31423]
[1744572824388,6.95079,1620.0,1619.7,1.231423]
[1744572824723,6.95079,1620.0,1619.6,12.31422]
[1744572824724,13.12394,1620.0,1619.6,12.31422]
[1744572824920,6.17328,1619.9,1619.6,6.14]
[1744572825222,12.34673,1619.9,1619.6,6.14]
[1744572825824,6.17328,1619.9,1619.6,6.14]
[1744572825983,12.34675,1619.9,1619.6,6.14]
[1744572826183,12.34675,1619.9,1619.6,7.371457]
[1744572828388,6.17398,1619.7,1619.6,7.371457]
[1744572828583,6.17398,1619.7,1619.6,6.14]
[1744572829114,6.17458,1619.6,1619.4,6.14]
[1744572829622,6.17474,1619.5,1619.4,6.14]
[1744572829984,6.17588,1619.2,1619.0,6.14]
[1744572830390,6.17703,1619.0,1618.7,6.14]
[1744572830612,6.17703,1619.0,1618.8,0.614]
[1744572831385,6.17594,1619.2,1618.9,6.17702]
[1744572831589,13.12926,1619.3,1618.9,6.23878642]
[1744572832309,0.7779,1619.3,1618.9,0.06176642]
[1744572832486,12.97913,1619.4,1619.0,6.96854]
[1744572832827,6.804,1619.4,1619.1,6.873044]
[1744572833418,6.1757,1619.3,1618.8,7.58349]
[1744572833623,6.17588,1619.2,1618.8,13.76062]
[1744572833832,6.17558,1619.3,1618.9,6.1768]
[1744572834198,6.17558,1619.3,1619.0,6.17658]
[1744572835504,6.17558,1619.3,1619.0,12.31658]
[1744572835825,12.35133,1619.3,1619.0,7.989338]
[1744572836947,6.804,1619.4,1619.0,6.14]
[1744572836948,6.17592,1619.2,1619.0,6.14]
[1744572837427,6.17556,1619.3,1619.0,6.14]
[1744572837723,6.17556,1619.3,1619.0,12.31649]
[1744572837926,6.17556,1619.3,1619.0,6.14]
[1744572840330,6.17556,1619.3,1619.0,12.31657]
[1744572840516,6.17556,1619.3,1619.0,14.165921]
[1744572841306,6.17556,1619.3,1619.0,6.14]
[1744572841307,6.17603,1619.2,1619.0,6.14]
[1744572841509,6.17558,1619.3,1619.0,6.14]
[1744572841829,6.804,1619.4,1619.1,6.17609]
[1744572842533,12.97915,1619.4,1619.1,6.17609]
[1744572844055,6.804,1619.4,1619.1,6.17609]
[1744572844349,6.804,1619.4,1619.1,7.407699]
[1744572844653,0.8002,1619.7,1619.1,8.137809]
[1744572844807,6.17494,1619.5,1619.2,6.20175317]
[1744572845115,6.1755,1619.3,1619.2,6.33293399]
[1744572845318,6.1755,1619.3,1619.2,0.19293399]
[1744572845637,6.1755,1619.3,1619.0,18.493]
[1744572845810,6.1755,1619.3,1619.0,20.41892]
[1744572846006,13.15105,1619.4,1619.0,20.4189]
[1744572846210,6.1755,1619.3,1619.0,14.2424]
[1744572846449,6.97556,1619.4,1619.0,14.2424]
[1744572846450,6.97556,1619.4,1619.0,20.41891]
[1744572846650,13.15088,1619.4,1619.0,20.41888]
[1744572847150,6.17553,1619.3,1619.0,14.2424]
[1744572847356,13.15102,1619.4,1619.0,20.41889]
[1744572849248,6.17571,1619.3,1619.0,14.2424]
[1744572849629,6.805,1619.5,1619.2,6.17562]
[1744572850150,12.97981,1619.5,1619.2,6.17562]
[1744572850855,6.17527,1619.4,1619.1,6.17619]
[1744572851162,12.9798,1619.5,1619.2,6.17585]
[1744572851329,19.15489,1619.5,1619.1,13.776501]
[1744572852060,19.15489,1619.5,1619.1,7.600351]
[1744572852354,19.15489,1619.5,1619.1,7.66210721]
[1744572852660,19.15489,1619.5,1619.1,13.83824721]
[1744572852958,12.9798,1619.5,1619.1,13.776491]
[1744572853159,19.15471,1619.5,1619.1,13.776491]
[1744572853326,19.15486,1619.5,1619.1,13.776491]
[1744572853657,12.35088,1619.4,1619.1,1.424211]
[1744572853856,12.35088,1619.4,1619.0,14.24255]
[1744572853857,12.35088,1619.4,1619.0,20.41918]
[1744572854160,6.176,1619.2,1618.7,6.8969]
[1744572854364,6.176,1619.2,1618.7,13.13638793]
[1744572854682,0.7999,1619.3,1618.8,4.5297443]
[1744572854828,60.056935,1620.0,1619.5,6.17454]
[1744572854829,6.17363,1619.8,1619.5,6.17454]
[1744572855169,0.7999,1619.9,1619.7,6.17369]
[1744572855371,0.7999,1620.2,1619.8,4.33676168]
[1744572855666,1.314185,1620.3,1620.0,6.17249]
[1744572855820,1.314185,1620.3,1619.8,16.65034168]
[1744572856026,12.34461,1620.2,1619.8,16.65021168]
[1744572856221,6.17229,1620.2,1619.9,0.19285657]
[1744572856424,6.1725,1620.1,1619.9,0.19285657]
[1744572856650,6.17229,1620.2,1619.9,0.19285657]
[1744572856823,6.17229,1620.2,1619.8,22.82360168]
[1744572857032,1.234404,1620.2,1619.8,6.14]
[1744572857233,6.17301,1620.0,1619.8,6.14]
[1744572857466,6.9725,1620.1,1619.8,12.31343]
[1744572857768,0.7999,1620.3,1620.0,13.10256]
[1744572858064,0.02,1620.4,1620.2,6.17191]
[1744572858279,6.17175,1620.3,1620.0,6.9296]
[1744572858434,6.17175,1620.3,1620.0,1.92988453]
[1744572858634,6.17175,1620.3,1619.9,6.17302]
[1744572858975,6.19135,1620.4,1620.1,6.17243]
[1744572859180,0.02,1620.4,1620.1,6.17224]
[1744572859551,0.02,1620.4,1620.1,12.34455]
[1744572859751,0.02,1620.4,1620.2,6.17204]
[1744572860185,0.02,1620.4,1620.1,6.92914]
[1744572860344,0.02,1620.4,1620.1,8.239335]
[1744572860678,0.02,1620.4,1620.2,6.172]
[1744572862079,0.02,1620.4,1620.1,8.239335]
[1744572862283,12.363,1620.4,1620.1,2.067095]
[1744572862451,6.17181,1620.3,1620.1,2.067095]
[1744572862644,0.02,1620.4,1619.9,0.7569]
[1744572862856,12.34361,1620.3,1619.9,6.9301]
[1744572863567,6.17169,1620.3,1619.9,13.16486269]
[1744572863779,12.34359,1620.3,1619.9,13.10314]
[1744572863982,12.34359,1620.3,1619.9,15.327454]
[1744572864345,6.17242,1620.2,1619.8,12.31358]
[1744572864545,6.17242,1620.2,1619.8,12.37530516]
[1744572864745,0.02,1620.4,1620.1,6.17228]
[1744572865070,0.02,1620.4,1620.1,12.34462]
[1744572865876,0.02,1620.4,1620.1,6.17228]
[1744572866291,0.02,1620.4,1620.1,7.406784]
[1744572866590,0.02,1620.4,1620.2,6.17183]
[1744572866777,0.02,1620.4,1620.3,6.17169]
[1744572867146,0.02,1620.4,1620.3,6.2333973]
[1744572867486,0.02,1620.4,1620.3,16.7324973]
[1744572867695,0.02,1620.4,1620.3,19.44124726]
[1744572867987,0.02,1620.4,1620.3,19.63401936]
[1744572870785,0.02,1620.4,1620.3,19.44124726]
[1744572871377,0.02,1620.4,1620.3,19.63401425]
[1744572871889,0.02,1620.4,1620.3,20.10826146]
[1744572873350,0.02,1620.4,1620.3,19.36549447]